[Event "Early-Titled-Tuesday-Blitz-May-28-2024"]
[Site "Chess.com"]
[Date "2024.05.28"]
[Round "11"]
[White "DanielNaroditsky"]
[Black "baki83"]
[Result "1-0"]
[WhiteElo "3075"]
[BlackElo "2926"]
[TimeControl "180+1"]
[EndTime "10:07:37 PDT"]
[Termination "DanielNaroditsky won by resignation"]

1. e4 {[%clk 0:03:00.9]} 1... c5 {[%clk 0:02:59.8]} 2. c3 {[%clk 0:03:01]} 2...
e5 {[%clk 0:02:59.2]} 3. Nf3 {[%clk 0:03:01]} 3... Nc6 {[%clk 0:02:59.1]} 4. Bc4
{[%clk 0:03:01.5]} 4... Nf6 {[%clk 0:02:58.5]} 5. Ng5 {[%clk 0:02:55.9]} 5... d5
{[%clk 0:02:57.6]} 6. exd5 {[%clk 0:02:53.5]} 6... Nxd5 {[%clk 0:02:58.3]} 7.
Qf3 {[%clk 0:02:52.6]} 7... Qxg5 {[%clk 0:02:57.6]} 8. Bxd5 {[%clk 0:02:52.8]}
8... Nd8 {[%clk 0:02:58.2]} 9. O-O {[%clk 0:02:52.8]} 9... Qf5 {[%clk
0:02:48.3]} 10. Re1 {[%clk 0:02:46]} 10... Qxf3 {[%clk 0:02:32]} 11. Rxe5+
{[%clk 0:02:44.3]} 11... Be6 {[%clk 0:02:22.4]} 12. Bxf3 {[%clk 0:02:45.2]}
12... Bd6 {[%clk 0:02:21.6]} 13. Re1 {[%clk 0:02:45.9]} 13... Kd7 {[%clk
0:02:22.1]} 14. d4 {[%clk 0:02:45.5]} 14... cxd4 {[%clk 0:02:22.6]} 15. cxd4
{[%clk 0:02:46.4]} 15... Bf5 {[%clk 0:02:15.3]} 16. Nc3 {[%clk 0:02:45.8]} 16...
Rc8 {[%clk 0:02:11]} 17. d5 {[%clk 0:02:34.1]} 17... Re8 {[%clk 0:02:07.4]} 18.
Rxe8 {[%clk 0:02:29.1]} 18... Kxe8 {[%clk 0:02:07.2]} 19. Be3 {[%clk 0:02:30]}
19... Bc5 {[%clk 0:02:06.2]} 20. Bxc5 {[%clk 0:02:17.6]} 20... Rxc5 {[%clk
0:02:07.1]} 21. Kf1 {[%clk 0:02:18.1]} 21... Kd7 {[%clk 0:02:01.4]} 22. Ke2
{[%clk 0:02:18]} 22... Kd6 {[%clk 0:01:59.4]} 23. Ke3 {[%clk 0:02:12.2]} 23...
Bg6 {[%clk 0:01:25.4]} 24. a4 {[%clk 0:02:07.2]} 24... a6 {[%clk 0:01:25]} 25.
Kd4 {[%clk 0:02:04.4]} 25... b6 {[%clk 0:00:59.9]} 26. Ra3 {[%clk 0:01:58.5]}
26... Nb7 {[%clk 0:00:50.7]} 27. Rb3 {[%clk 0:01:39]} 27... Kc7 {[%clk
0:00:50.5]} 28. d6+ {[%clk 0:01:36.9]} 28... Nxd6 {[%clk 0:00:45.2]} 29. Nd5+
{[%clk 0:01:36.9]} 29... Kd8 {[%clk 0:00:45.6]} 30. Rxb6 {[%clk 0:01:27.9]}
30... Rc4+ {[%clk 0:00:45.5]} 31. Ke3 {[%clk 0:01:28.4]} 31... Nf5+ {[%clk
0:00:45.3]} 32. Kd2 {[%clk 0:01:28.6]} 32... Rd4+ {[%clk 0:00:28.8]} 33. Kc3
{[%clk 0:01:26.9]} 33... Rh4 {[%clk 0:00:24.1]} 34. Rxa6 {[%clk 0:01:21.8]}
34... Nd4 {[%clk 0:00:23.8]} 35. g3 {[%clk 0:01:14.2]} 1-0

[Event "Early-Titled-Tuesday-Blitz-May-28-2024"]
[Site "Chess.com"]
[Date "2024.05.28"]
[Round "11"]
[White "KatakuriDono"]
[Black "emeli_chess"]
[Result "1/2-1/2"]
[WhiteElo "2276"]
[BlackElo "2418"]
[TimeControl "180+1"]
[EndTime "10:07:41 PDT"]
[Termination "Game drawn by repetition"]

1. d4 {[%clk 0:03:00.9]} 1... Nf6 {[%clk 0:02:59.7]} 2. Nf3 {[%clk 0:03:00.4]}
2... d5 {[%clk 0:02:59.3]} 3. g3 {[%clk 0:02:59.8]} 3... Bg4 {[%clk 0:02:57.9]}
4. Bg2 {[%clk 0:02:58.9]} 4... Nbd7 {[%clk 0:02:58]} 5. O-O {[%clk 0:02:58.6]}
5... e6 {[%clk 0:02:58.3]} 6. c4 {[%clk 0:02:57.1]} 6... c6 {[%clk 0:02:58]} 7.
Nc3 {[%clk 0:02:56.1]} 7... Bd6 {[%clk 0:02:57.5]} 8. cxd5 {[%clk 0:02:56.1]}
8... exd5 {[%clk 0:02:57.1]} 9. Qb3 {[%clk 0:02:54.5]} 9... Qb6 {[%clk
0:02:54.9]} 10. Bf4 {[%clk 0:02:40.7]} 10... Bxf4 {[%clk 0:02:41.8]} 11. gxf4
{[%clk 0:02:41.6]} 11... Bxf3 {[%clk 0:02:29.8]} 12. Bxf3 {[%clk 0:02:40.2]}
12... O-O {[%clk 0:02:28.4]} 13. Qc2 {[%clk 0:02:36.6]} 13... Rfe8 {[%clk
0:02:27.4]} 14. e3 {[%clk 0:02:36.4]} 14... Re7 {[%clk 0:02:18.1]} 15. Kh1
{[%clk 0:02:35.4]} 15... Rae8 {[%clk 0:02:10.3]} 16. Rg1 {[%clk 0:02:35.2]}
16... Ne4 {[%clk 0:02:10.1]} 17. Rg2 {[%clk 0:02:30]} 17... f5 {[%clk
0:02:03.3]} 18. Rag1 {[%clk 0:02:27.5]} 18... Ndf6 {[%clk 0:01:49.1]} 19. Ne2
{[%clk 0:02:20.6]} 19... g6 {[%clk 0:01:41.7]} 20. Ng3 {[%clk 0:02:17.5]} 20...
Kh8 {[%clk 0:01:41.4]} 21. h4 {[%clk 0:02:12.9]} 21... h5 {[%clk 0:01:32.9]} 22.
Nxe4 {[%clk 0:01:59.1]} 22... dxe4 {[%clk 0:01:22]} 23. Rxg6 {[%clk 0:01:45.8]}
23... Ng4 {[%clk 0:01:17.8]} 24. Bxg4 {[%clk 0:01:34.2]} 24... hxg4 {[%clk
0:01:15.4]} 25. Kg2 {[%clk 0:01:26.4]} 25... Qb5 {[%clk 0:00:55.9]} 26. Qc3
{[%clk 0:01:14.1]} 26... Qe2 {[%clk 0:00:47.9]} 27. d5+ {[%clk 0:00:58.8]} 27...
Kh7 {[%clk 0:00:47.7]} 28. Qf6 {[%clk 0:00:52.2]} 28... Qf3+ {[%clk 0:00:44]}
29. Kf1 {[%clk 0:00:52.4]} 29... Qd1+ {[%clk 0:00:40.7]} 30. Kg2 {[%clk
0:00:52.7]} 30... Qf3+ {[%clk 0:00:40.3]} 31. Kf1 {[%clk 0:00:53.1]} 31... Qd1+
{[%clk 0:00:34]} 32. Kg2 {[%clk 0:00:53.4]} 32... Qf3+ {[%clk 0:00:33.3]}
1/2-1/2

[Event "Early-Titled-Tuesday-Blitz-May-28-2024"]
[Site "Chess.com"]
[Date "2024.05.28"]
[Round "11"]
[White "Jospem"]
[Black "Adar_07"]
[Result "1-0"]
[WhiteElo "3015"]
[BlackElo "2772"]
[TimeControl "180+1"]
[EndTime "10:07:43 PDT"]
[Termination "Jospem won by resignation"]

1. e4 {[%clk 0:02:52.6]} 1... e5 {[%clk 0:02:58.1]} 2. Nf3 {[%clk 0:02:52.8]}
2... Nc6 {[%clk 0:02:58.7]} 3. Nc3 {[%clk 0:02:52.6]} 3... Nf6 {[%clk
0:02:58.1]} 4. g3 {[%clk 0:02:52.4]} 4... Bb4 {[%clk 0:02:51]} 5. d3 {[%clk
0:02:44.1]} 5... d5 {[%clk 0:02:49.1]} 6. exd5 {[%clk 0:02:45]} 6... Nxd5 {[%clk
0:02:45.4]} 7. Bd2 {[%clk 0:02:44.6]} 7... Bg4 {[%clk 0:02:45.3]} 8. Bg2 {[%clk
0:02:44.1]} 8... O-O {[%clk 0:02:37.7]} 9. h3 {[%clk 0:02:43.1]} 9... Bh5 {[%clk
0:02:36.7]} 10. g4 {[%clk 0:02:41.7]} 10... Bg6 {[%clk 0:02:35.2]} 11. O-O
{[%clk 0:02:40.9]} 11... Bxc3 {[%clk 0:02:33.6]} 12. bxc3 {[%clk 0:02:40.9]}
12... e4 {[%clk 0:02:33.8]} 13. Ne1 {[%clk 0:02:41]} 13... Re8 {[%clk
0:02:31.9]} 14. c4 {[%clk 0:02:34]} 14... e3 {[%clk 0:02:16.3]} 15. fxe3 {[%clk
0:02:25.3]} 15... Nxe3 {[%clk 0:02:17.2]} 16. Bxe3 {[%clk 0:02:25.7]} 16... Rxe3
{[%clk 0:02:18.1]} 17. Qd2 {[%clk 0:02:26.1]} 17... Qd4 {[%clk 0:02:11.8]} 18.
Qf2 {[%clk 0:02:18]} 18... Qxa1 {[%clk 0:01:24.1]} 19. Qxe3 {[%clk 0:02:18]}
19... Qxa2 {[%clk 0:01:24.7]} 20. h4 {[%clk 0:02:18.7]} 20... f6 {[%clk
0:01:23.2]} 21. h5 {[%clk 0:02:18.8]} 21... Bf7 {[%clk 0:01:21.2]} 22. h6 {[%clk
0:02:19.4]} 22... Re8 {[%clk 0:01:20.1]} 23. Qg3 {[%clk 0:02:13.7]} 23... Qa5
{[%clk 0:01:14.2]} 24. hxg7 {[%clk 0:02:10.7]} 24... Kxg7 {[%clk 0:01:15.1]} 25.
Bxc6 {[%clk 0:02:07.6]} 25... Qc5+ {[%clk 0:01:13.8]} 26. Qf2 {[%clk 0:01:54.5]}
26... Qxc6 {[%clk 0:00:56.4]} 27. Ng2 {[%clk 0:01:54.7]} 27... Bg6 {[%clk
0:00:53.6]} 28. Nf4 {[%clk 0:01:53.6]} 28... Re5 {[%clk 0:00:53.3]} 29. Qd4
{[%clk 0:01:32.9]} 29... Rg5 {[%clk 0:00:28.8]} 30. Nd5 {[%clk 0:01:32.5]} 30...
Qe6 {[%clk 0:00:29]} 31. Nxf6 {[%clk 0:01:26]} 31... Qe5 {[%clk 0:00:18.8]} 32.
Qd7+ {[%clk 0:01:26]} 32... Bf7 {[%clk 0:00:05.9]} 33. Ne4 {[%clk 0:01:26]}
33... Rxg4+ {[%clk 0:00:05.8]} 34. Qxg4+ {[%clk 0:01:26]} 1-0

[Event "Early-Titled-Tuesday-Blitz-May-28-2024"]
[Site "Chess.com"]
[Date "2024.05.28"]
[Round "11"]
[White "Daaksboy"]
[Black "Dolphin_2010"]
[Result "1-0"]
[WhiteElo "2518"]
[BlackElo "2739"]
[TimeControl "180+1"]
[EndTime "10:07:52 PDT"]
[Termination "Daaksboy won by checkmate"]

1. d4 {[%clk 0:03:00.9]} 1... d5 {[%clk 0:03:00]} 2. c4 {[%clk 0:03:00.2]} 2...
c6 {[%clk 0:02:58.6]} 3. Nc3 {[%clk 0:00:40.5]} 3... Nf6 {[%clk 0:01:37]} 4.
cxd5 {[%clk 0:00:40]} 4... cxd5 {[%clk 0:01:37.2]} 5. Bf4 {[%clk 0:00:40.7]}
5... Nc6 {[%clk 0:01:33.7]} 6. e3 {[%clk 0:00:41.4]} 6... a6 {[%clk 0:01:34.1]}
7. Be2 {[%clk 0:00:41]} 7... Bf5 {[%clk 0:01:34.2]} 8. Nf3 {[%clk 0:00:39.1]}
8... e6 {[%clk 0:01:34.5]} 9. Qb3 {[%clk 0:00:39.7]} 9... Ra7 {[%clk 0:01:34.3]}
10. O-O {[%clk 0:00:33.7]} 10... Bd6 {[%clk 0:01:34.8]} 11. Bxd6 {[%clk
0:00:33.6]} 11... Qxd6 {[%clk 0:01:35.7]} 12. Rfc1 {[%clk 0:00:33.9]} 12... O-O
{[%clk 0:01:36.3]} 13. a3 {[%clk 0:00:32.8]} 13... Rc8 {[%clk 0:01:33]} 14. Na4
{[%clk 0:00:30.3]} 14... Rc7 {[%clk 0:01:33.2]} 15. Nc5 {[%clk 0:00:28.6]} 15...
Nd7 {[%clk 0:01:30.4]} 16. Qd1 {[%clk 0:00:23.2]} 16... Nxc5 {[%clk 0:01:29.8]}
17. dxc5 {[%clk 0:00:22.9]} 17... Ra8 {[%clk 0:01:30.4]} 18. cxd6 {[%clk
0:00:22.3]} 18... Rd7 {[%clk 0:01:24.6]} 19. Nd4 {[%clk 0:00:22.3]} 19... Rxd6
{[%clk 0:01:25.5]} 20. Nxf5 {[%clk 0:00:21.6]} 20... exf5 {[%clk 0:01:26.4]} 21.
Bf3 {[%clk 0:00:22.2]} 21... Rad8 {[%clk 0:01:27.3]} 22. Qe2 {[%clk 0:00:22.5]}
22... Ne5 {[%clk 0:01:27.7]} 23. Rd1 {[%clk 0:00:22.5]} 23... g6 {[%clk
0:01:27.4]} 24. Bxd5 {[%clk 0:00:22.4]} 24... Rxd5 {[%clk 0:01:28.3]} 25. Rxd5
{[%clk 0:00:23]} 25... Rxd5 {[%clk 0:01:29.1]} 26. Rd1 {[%clk 0:00:23.6]} 26...
Rc5 {[%clk 0:01:29.6]} 27. Qd2 {[%clk 0:00:22.7]} 27... Nc6 {[%clk 0:01:29.3]}
28. Qd6 {[%clk 0:00:22.4]} 28... Rb5 {[%clk 0:01:29.9]} 29. b4 {[%clk
0:00:22.6]} 29... Kg7 {[%clk 0:01:30.1]} 30. Rd5 {[%clk 0:00:22.2]} 30... Rb6
{[%clk 0:01:30.3]} 31. Qc7 {[%clk 0:00:22.3]} 31... Rb5 {[%clk 0:01:28.9]} 32.
Rxb5 {[%clk 0:00:22]} 32... axb5 {[%clk 0:01:29.8]} 33. Qxb7 {[%clk 0:00:22.4]}
33... Kh6 {[%clk 0:01:30.7]} 34. Qxc6 {[%clk 0:00:22.5]} 34... Kg7 {[%clk
0:01:31.6]} 35. Qxb5 {[%clk 0:00:23.1]} 35... Kh6 {[%clk 0:01:32.2]} 36. a4
{[%clk 0:00:23.9]} 36... Kg7 {[%clk 0:01:33.1]} 37. a5 {[%clk 0:00:24.8]} 37...
Kh6 {[%clk 0:01:34]} 38. a6 {[%clk 0:00:25.7]} 38... Kg7 {[%clk 0:01:34.9]} 39.
a7 {[%clk 0:00:26.6]} 39... Kg8 {[%clk 0:01:35.6]} 40. a8=Q+ {[%clk 0:00:27.5]}
40... Kg7 {[%clk 0:01:36.5]} 41. Qe5+ {[%clk 0:00:27.5]} 41... Kh6 {[%clk
0:01:36.6]} 42. Qf8+ {[%clk 0:00:27.5]} 42... Kg5 {[%clk 0:01:37.5]} 43. h4+
{[%clk 0:00:24.4]} 43... Kxh4 {[%clk 0:01:26.8]} 44. Qh6+ {[%clk 0:00:22.8]}
44... Kg4 {[%clk 0:01:27.7]} 45. Qg3# {[%clk 0:00:23.2]} 1-0

[Event "Early-Titled-Tuesday-Blitz-May-28-2024"]
[Site "Chess.com"]
[Date "2024.05.28"]
[Round "11"]
[White "Budag-Leyla"]
[Black "NikitaShnadrygin"]
[Result "1-0"]
[WhiteElo "2354"]
[BlackElo "2750"]
[TimeControl "180+1"]
[EndTime "10:07:56 PDT"]
[Termination "Budag-Leyla won by resignation"]

1. d4 {[%clk 0:03:00.9]} 1... d5 {[%clk 0:03:00.1]} 2. Nf3 {[%clk 0:03:01.1]}
2... Nc6 {[%clk 0:03:01]} 3. c4 {[%clk 0:03:01.3]} 3... Bg4 {[%clk 0:03:01.1]}
4. cxd5 {[%clk 0:02:57.9]} 4... Bxf3 {[%clk 0:03:00.8]} 5. dxc6 {[%clk 0:02:58]}
5... Bxc6 {[%clk 0:03:01.7]} 6. Nc3 {[%clk 0:02:58.4]} 6... Nf6 {[%clk 0:03:02]}
7. f3 {[%clk 0:02:57.6]} 7... e5 {[%clk 0:03:00.3]} 8. dxe5 {[%clk 0:02:57.9]}
8... Nd7 {[%clk 0:03:00.9]} 9. e4 {[%clk 0:02:57.6]} 9... Nxe5 {[%clk
0:03:00.6]} 10. Be3 {[%clk 0:02:58.3]} 10... Bd6 {[%clk 0:02:45.9]} 11. Qc2
{[%clk 0:02:57.8]} 11... Qe7 {[%clk 0:02:40.2]} 12. O-O-O {[%clk 0:02:57.3]}
12... O-O {[%clk 0:02:37.3]} 13. Kb1 {[%clk 0:02:57.2]} 13... Rab8 {[%clk
0:02:33.5]} 14. h3 {[%clk 0:02:56.4]} 14... Ng6 {[%clk 0:02:29.3]} 15. Bd3
{[%clk 0:02:54.8]} 15... Bf4 {[%clk 0:02:28.4]} 16. Bd4 {[%clk 0:02:50.4]} 16...
Rfd8 {[%clk 0:02:26.5]} 17. Bc4 {[%clk 0:02:50.8]} 17... Be5 {[%clk 0:02:13.4]}
18. Be3 {[%clk 0:02:49.8]} 18... Qf6 {[%clk 0:02:03.7]} 19. Nd5 {[%clk
0:02:48.3]} 19... Bxd5 {[%clk 0:02:03.6]} 20. Bxd5 {[%clk 0:02:49.2]} 20... c6
{[%clk 0:02:02.9]} 21. Bb3 {[%clk 0:02:49.1]} 21... b6 {[%clk 0:01:43.9]} 22. a3
{[%clk 0:02:44.9]} 22... h6 {[%clk 0:01:34.9]} 23. Qc4 {[%clk 0:02:43.8]} 23...
c5 {[%clk 0:01:28.4]} 24. Qc2 {[%clk 0:02:40.3]} 24... Bd4 {[%clk 0:01:26.6]}
25. Bc1 {[%clk 0:02:39.1]} 25... b5 {[%clk 0:01:17.9]} 26. Bd5 {[%clk
0:02:38.5]} 26... Ne7 {[%clk 0:01:16.5]} 27. Ba2 {[%clk 0:02:38.6]} 27... c4
{[%clk 0:01:14.7]} 28. Bd2 {[%clk 0:02:38.4]} 28... Nc6 {[%clk 0:01:12.3]} 29.
f4 {[%clk 0:02:34.4]} 29... b4 {[%clk 0:01:02.4]} 30. e5 {[%clk 0:02:33.1]}
30... Qe7 {[%clk 0:01:00.6]} 31. Bxc4 {[%clk 0:02:18.8]} 31... bxa3 {[%clk
0:00:59.4]} 32. b3 {[%clk 0:02:19.4]} 32... a5 {[%clk 0:00:50]} 33. Ka2 {[%clk
0:02:18.5]} 33... a4 {[%clk 0:00:46.4]} 34. Rb1 {[%clk 0:02:17.2]} 34... Bb2
{[%clk 0:00:46.1]} 35. bxa4 {[%clk 0:01:56.6]} 35... Rxd2 {[%clk 0:00:37.9]} 36.
Qxd2 {[%clk 0:01:57.1]} 36... Nb4+ {[%clk 0:00:37.8]} 37. Kb3 {[%clk 0:01:57.8]}
37... Qc5 {[%clk 0:00:20.6]} 38. Qd6 {[%clk 0:01:52.1]} 38... Nc6+ {[%clk
0:00:15.6]} 39. Bb5 {[%clk 0:01:52.3]} 39... Rxb5+ {[%clk 0:00:08.1]} 40. axb5
{[%clk 0:01:51.3]} 40... Na5+ {[%clk 0:00:08.7]} 41. Ka4 {[%clk 0:01:49.6]}
41... Qa7 {[%clk 0:00:03.3]} 42. Qd8+ {[%clk 0:01:48.7]} 42... Kh7 {[%clk
0:00:03]} 43. Qxa5 {[%clk 0:01:49.1]} 43... Qd4+ {[%clk 0:00:03.3]} 44. Qb4
{[%clk 0:01:49.5]} 44... Qa7+ {[%clk 0:00:02.9]} 45. Kb3 {[%clk 0:01:49.2]}
45... a2 {[%clk 0:00:03.8]} 46. Kxb2 {[%clk 0:01:49]} 46... Qf2+ {[%clk
0:00:03]} 47. Ka1 {[%clk 0:01:48.8]} 1-0

[Event "Early-Titled-Tuesday-Blitz-May-28-2024"]
[Site "Chess.com"]
[Date "2024.05.28"]
[Round "11"]
[White "yobdc"]
[Black "Mikhail_Golubev"]
[Result "0-1"]
[WhiteElo "2531"]
[BlackElo "2636"]
[TimeControl "180+1"]
[EndTime "10:07:57 PDT"]
[Termination "Mikhail_Golubev won by resignation"]

1. e4 {[%clk 0:03:00.9]} 1... c5 {[%clk 0:02:59.4]} 2. Nf3 {[%clk 0:03:01.1]}
2... d6 {[%clk 0:02:59.5]} 3. Bb5+ {[%clk 0:03:01.3]} 3... Bd7 {[%clk 0:02:59]}
4. Bxd7+ {[%clk 0:02:59]} 4... Nxd7 {[%clk 0:02:59.9]} 5. O-O {[%clk 0:02:58.2]}
5... Ngf6 {[%clk 0:03:00.4]} 6. Re1 {[%clk 0:02:58.5]} 6... e6 {[%clk
0:03:00.7]} 7. c3 {[%clk 0:02:51.1]} 7... Be7 {[%clk 0:02:59.8]} 8. d4 {[%clk
0:02:51.3]} 8... O-O {[%clk 0:02:59.2]} 9. Bf4 {[%clk 0:02:40.8]} 9... d5 {[%clk
0:02:47.1]} 10. e5 {[%clk 0:02:36]} 10... Ne4 {[%clk 0:02:46.5]} 11. Nbd2 {[%clk
0:02:35]} 11... Nxd2 {[%clk 0:02:45.3]} 12. Qxd2 {[%clk 0:02:35.9]} 12... Rc8
{[%clk 0:02:37.3]} 13. h4 {[%clk 0:02:34.3]} 13... cxd4 {[%clk 0:02:20]} 14.
Nxd4 {[%clk 0:02:33.6]} 14... Bxh4 {[%clk 0:02:08.3]} 15. g3 {[%clk 0:02:33.1]}
15... Be7 {[%clk 0:02:07.4]} 16. Kg2 {[%clk 0:02:32.1]} 16... g5 {[%clk
0:01:52]} 17. Rh1 {[%clk 0:02:24.4]} 17... gxf4 {[%clk 0:01:51.9]} 18. Qxf4
{[%clk 0:02:25.3]} 18... Bg5 {[%clk 0:01:34.5]} 19. Qg4 {[%clk 0:02:02.2]} 19...
Nxe5 {[%clk 0:01:33]} 20. Qh5 {[%clk 0:01:59.6]} 20... h6 {[%clk 0:01:33]} 21.
f4 {[%clk 0:01:55.5]} 21... Kg7 {[%clk 0:01:30.1]} 22. fxe5 {[%clk 0:01:30.4]}
22... Qb6 {[%clk 0:01:27.9]} 23. Raf1 {[%clk 0:01:03.4]} 23... Qxb2+ {[%clk
0:01:08.2]} 24. Rf2 {[%clk 0:01:03.6]} 24... Qxc3 {[%clk 0:01:08.6]} 25. Rhf1
{[%clk 0:00:38.4]} 25... Qxd4 {[%clk 0:00:59.1]} 26. Rxf7+ {[%clk 0:00:37.5]}
26... Rxf7 {[%clk 0:00:59.3]} 27. Rxf7+ {[%clk 0:00:21.3]} 27... Kh8 {[%clk
0:00:57.9]} 28. Qg6 {[%clk 0:00:21.5]} 28... Qe4+ {[%clk 0:00:56.2]} 0-1

[Event "Early-Titled-Tuesday-Blitz-May-28-2024"]
[Site "Chess.com"]
[Date "2024.05.28"]
[Round "11"]
[White "Yan_Dyomin2010"]
[Black "chessburger_tv"]
[Result "0-1"]
[WhiteElo "2569"]
[BlackElo "2411"]
[TimeControl "180+1"]
[EndTime "10:07:57 PDT"]
[Termination "chessburger_tv won on time"]

1. e4 {[%clk 0:03:00.9]} 1... c5 {[%clk 0:02:59.4]} 2. Nf3 {[%clk 0:03:00.4]}
2... Nc6 {[%clk 0:02:59.2]} 3. d4 {[%clk 0:02:57.4]} 3... cxd4 {[%clk
0:02:53.4]} 4. Nxd4 {[%clk 0:02:58.2]} 4... e5 {[%clk 0:02:53.5]} 5. Nb5 {[%clk
0:02:56]} 5... d6 {[%clk 0:02:54]} 6. N1c3 {[%clk 0:02:52]} 6... a6 {[%clk
0:02:54.2]} 7. Na3 {[%clk 0:02:52.2]} 7... Be7 {[%clk 0:02:49.9]} 8. Nd5 {[%clk
0:02:45.1]} 8... Nf6 {[%clk 0:02:50.1]} 9. Nxe7 {[%clk 0:02:44.8]} 9... Nxe7
{[%clk 0:02:44.4]} 10. Bd3 {[%clk 0:02:44.6]} 10... O-O {[%clk 0:02:44.3]} 11.
O-O {[%clk 0:02:44]} 11... d5 {[%clk 0:02:44.7]} 12. exd5 {[%clk 0:02:43.6]}
12... Nexd5 {[%clk 0:02:45.4]} 13. Re1 {[%clk 0:02:43.2]} 13... Re8 {[%clk
0:02:43.5]} 14. Bg5 {[%clk 0:02:36.1]} 14... Bg4 {[%clk 0:02:39.6]} 15. Be2
{[%clk 0:02:20.8]} 15... Bxe2 {[%clk 0:02:34.7]} 16. Qxe2 {[%clk 0:02:21.7]}
16... h6 {[%clk 0:02:30.4]} 17. Bxf6 {[%clk 0:02:21.5]} 17... Qxf6 {[%clk
0:02:29.5]} 18. Rad1 {[%clk 0:02:21.4]} 18... Nf4 {[%clk 0:02:29.7]} 19. Qf3
{[%clk 0:02:17.3]} 19... Rac8 {[%clk 0:02:16.6]} 20. c3 {[%clk 0:02:11.3]} 20...
Rc7 {[%clk 0:02:03.3]} 21. g3 {[%clk 0:02:03.8]} 21... Nh3+ {[%clk 0:01:55.5]}
22. Kg2 {[%clk 0:02:04]} 22... Qxf3+ {[%clk 0:01:55]} 23. Kxf3 {[%clk
0:02:04.9]} 23... Ng5+ {[%clk 0:01:55.6]} 24. Ke3 {[%clk 0:02:02.5]} 24... f5
{[%clk 0:01:53.6]} 25. f4 {[%clk 0:01:38.9]} 25... exf4+ {[%clk 0:01:33.2]} 26.
Kxf4 {[%clk 0:01:36.6]} 26... Rce7 {[%clk 0:01:30.9]} 27. Rxe7 {[%clk
0:01:35.8]} 27... Rxe7 {[%clk 0:01:31.1]} 28. Kxf5 {[%clk 0:01:26.8]} 28... Kf7
{[%clk 0:01:07.3]} 29. Rf1 {[%clk 0:01:01.2]} 29... Re4 {[%clk 0:01:05.8]} 0-1

[Event "Early-Titled-Tuesday-Blitz-May-28-2024"]
[Site "Chess.com"]
[Date "2024.05.28"]
[Round "11"]
[White "mortngabriel"]
[Black "Sl4werThanYou"]
[Result "0-1"]
[WhiteElo "2492"]
[BlackElo "2738"]
[TimeControl "180+1"]
[EndTime "10:08:01 PDT"]
[Termination "Sl4werThanYou won on time"]

1. d4 {[%clk 0:03:00.9]} 1... d5 {[%clk 0:02:49.8]} 2. c4 {[%clk 0:03:00.4]}
2... dxc4 {[%clk 0:02:50.1]} 3. Nf3 {[%clk 0:02:59.7]} 3... Nf6 {[%clk
0:02:50.1]} 4. e3 {[%clk 0:02:59.8]} 4... e6 {[%clk 0:02:51]} 5. Bxc4 {[%clk
0:02:59.6]} 5... Be7 {[%clk 0:02:51.9]} 6. O-O {[%clk 0:02:59]} 6... O-O {[%clk
0:02:52.8]} 7. Nc3 {[%clk 0:02:59.3]} 7... c5 {[%clk 0:02:53.3]} 8. b3 {[%clk
0:02:47.4]} 8... cxd4 {[%clk 0:02:52.6]} 9. Nxd4 {[%clk 0:02:42.6]} 9... a6
{[%clk 0:02:50.6]} 10. Bb2 {[%clk 0:02:42.2]} 10... b5 {[%clk 0:02:51.1]} 11.
Be2 {[%clk 0:02:42.3]} 11... Bb7 {[%clk 0:02:52]} 12. Bf3 {[%clk 0:02:41.5]}
12... Qb6 {[%clk 0:02:52.7]} 13. Bxb7 {[%clk 0:02:39.4]} 13... Qxb7 {[%clk
0:02:53.6]} 14. Qf3 {[%clk 0:02:39.6]} 14... Qxf3 {[%clk 0:02:54.3]} 15. Nxf3
{[%clk 0:02:40.2]} 15... Nc6 {[%clk 0:02:55]} 16. Rfd1 {[%clk 0:02:29.3]} 16...
Rac8 {[%clk 0:02:55.6]} 17. Nd4 {[%clk 0:02:19.5]} 17... Nxd4 {[%clk 0:02:55.6]}
18. Rxd4 {[%clk 0:02:20.4]} 18... Rfd8 {[%clk 0:02:56.1]} 19. Rxd8+ {[%clk
0:02:12.4]} 19... Bxd8 {[%clk 0:02:56]} 20. Rd1 {[%clk 0:02:11.8]} 20... Kf8
{[%clk 0:02:56]} 21. Kf1 {[%clk 0:02:09.5]} 21... Ba5 {[%clk 0:02:55.7]} 22. Rd3
{[%clk 0:01:53.7]} 22... Ke8 {[%clk 0:02:55.3]} 23. Ke2 {[%clk 0:01:51.1]} 23...
Nd5 {[%clk 0:02:55.9]} 24. Nd1 {[%clk 0:01:29.9]} 24... Rc2+ {[%clk 0:02:56.8]}
25. Kf3 {[%clk 0:01:29.5]} 25... g6 {[%clk 0:02:45.8]} 26. a4 {[%clk 0:01:19.9]}
26... bxa4 {[%clk 0:02:43.8]} 27. bxa4 {[%clk 0:01:20.8]} 27... f5 {[%clk
0:02:39.7]} 28. Be5 {[%clk 0:01:12.5]} 28... Rc4 {[%clk 0:02:32.6]} 29. Nb2
{[%clk 0:01:10.6]} 29... Rb4 {[%clk 0:02:32.6]} 30. Rd1 {[%clk 0:00:45.4]} 30...
g5 {[%clk 0:02:32.7]} 31. h3 {[%clk 0:00:44.2]} 31... h5 {[%clk 0:02:32.9]} 32.
g3 {[%clk 0:00:41.6]} 32... g4+ {[%clk 0:02:32.4]} 33. hxg4 {[%clk 0:00:41.5]}
33... hxg4+ {[%clk 0:02:33.3]} 34. Kg2 {[%clk 0:00:41.8]} 34... Bb6 {[%clk
0:02:22.8]} 35. Rc1 {[%clk 0:00:38.8]} 35... Kd7 {[%clk 0:02:17.3]} 36. Nc4
{[%clk 0:00:37.2]} 36... Bd8 {[%clk 0:02:06.5]} 37. Nd6 {[%clk 0:00:20.8]} 37...
Rxa4 {[%clk 0:02:03.8]} 38. Nb7 {[%clk 0:00:19.7]} 38... Bb6 {[%clk 0:02:02.2]}
39. Nc5+ {[%clk 0:00:17]} 39... Bxc5 {[%clk 0:02:02.8]} 40. Rxc5 {[%clk
0:00:17.3]} 40... Ra2 {[%clk 0:02:03.7]} 41. Kg1 {[%clk 0:00:16.6]} 41... a5
{[%clk 0:02:03.6]} 42. Rb5 {[%clk 0:00:16.4]} 42... a4 {[%clk 0:02:04.2]} 43.
Ra5 {[%clk 0:00:15.4]} 43... Kc6 {[%clk 0:02:03.2]} 44. Ra6+ {[%clk 0:00:14.8]}
44... Kb5 {[%clk 0:02:03.8]} 45. Rxe6 {[%clk 0:00:14.7]} 45... a3 {[%clk
0:02:04.5]} 46. Rd6 {[%clk 0:00:13.1]} 46... Nb4 {[%clk 0:02:05.1]} 47. Rf6
{[%clk 0:00:11.6]} 47... Nd3 {[%clk 0:02:04.4]} 48. Bd4 {[%clk 0:00:11.2]} 48...
Rxf2 {[%clk 0:02:03]} 49. e4 {[%clk 0:00:09.2]} 49... a2 {[%clk 0:02:01.5]} 50.
Rxf5+ {[%clk 0:00:05.9]} 50... Kc4 {[%clk 0:01:56.5]} 51. Rxf2 {[%clk
0:00:01.6]} 51... Nxf2 {[%clk 0:01:57.1]} 52. Ba1 {[%clk 0:00:01]} 52... Nxe4
{[%clk 0:01:58]} 53. Kg2 {[%clk 0:00:01]} 53... Kd3 {[%clk 0:01:58.3]} 54. Kg1
{[%clk 0:00:01.3]} 54... Nd2 {[%clk 0:01:58.7]} 55. Kf2 {[%clk 0:00:01.6]} 55...
Nb3 {[%clk 0:01:59.6]} 56. Bf6 {[%clk 0:00:01.4]} 56... Nd4 {[%clk 0:01:58.3]}
0-1